bitfinex/quotes_SOLUSD_20241101
["timestamp","ask_amount","ask_price","bid_price","bid_amount"]
[1730493900605,44.3231613,166.81,166.75,5.9966]
[1730493900816,8.86463226,166.76,166.74,20.9905]
[1730493901014,8.86463226,166.75,166.73,6.2479997]
[1730493901228,8.86463226,166.74,166.73,6.2479997]
[1730493901431,8.86463226,166.75,166.73,6.2479997]
[1730493902331,8.86463226,166.74,166.73,6.2479997]
[1730493902533,13.83348392,166.74,166.73,6.2479997]
[1730493902732,13.83348392,166.75,166.73,6.2479997]
[1730493903112,13.83348392,166.74,166.73,6.2479997]
[1730493903313,13.83348392,166.77,166.73,21.2422997]
[1730493903514,13.83348392,166.78,166.73,21.2422997]
[1730493903917,13.83348392,166.79,166.74,13.83348392]
[1730493904120,13.83348392,166.8,166.74,13.83348392]
[1730493904320,13.83348392,166.8,166.75,13.83348392]
[1730493904839,13.83348392,166.81,166.76,13.83348392]
[1730493906115,13.83348392,166.81,166.75,19.83008392]
[1730493907514,13.83348392,166.81,166.76,13.83348392]
[1730493910222,13.83348392,166.82,166.76,19.82988392]
[1730493910620,13.83348392,166.82,166.77,13.83348392]
[1730493910817,33.83348392,166.85,166.79,13.83348392]
[1730493911115,33.83348392,166.85,166.8,13.83348392]
[1730493911322,19.82648392,166.86,166.81,13.83348392]
[1730493912237,19.82648392,166.86,166.81,19.82798392]
[1730493912438,13.83348392,166.88,166.83,13.83348392]
[1730493912721,13.83348392,166.85,166.8,13.83348392]
[1730493912937,13.83348392,166.84,166.79,13.83348392]
[1730493913424,13.83348392,166.82,166.77,19.82968392]
[1730493913626,13.83348392,166.82,166.77,34.82038392]
[1730493914513,19.82788392,166.83,166.78,13.83348392]
[1730493915138,13.83348392,166.85,166.79,13.83348392]
[1730493915448,13.83348392,166.85,166.8,13.83348392]
[1730493915927,13.83348392,166.86,166.8,13.83348392]
[1730493916247,20.0,166.85,166.81,13.83348392]
[1730493916447,20.0,166.85,166.8,13.83348392]
[1730493916821,33.83348392,166.85,166.79,13.83348392]
[1730493917017,13.83348392,166.83,166.77,20.9869]
[1730493917231,13.83348392,166.83,166.77,34.82038392]
[1730493917445,13.83348392,166.84,166.79,13.83348392]
[1730493917645,39.82698392,166.85,166.79,13.83348392]
[1730493918525,13.83348392,166.84,166.79,13.83348392]
[1730493918731,13.83348392,166.81,166.75,26.07646671]
[1730493919331,13.83348392,166.81,166.76,13.83348392]
[1730493920548,13.83348392,166.81,166.76,19.82978392]
[1730493920848,13.83348392,166.79,166.75,21.23858279]
[1730493921048,13.83348392,166.78,166.75,21.23858279]
[1730493921342,13.83348392,166.79,166.75,21.23858279]
[1730493921526,13.83348392,166.79,166.75,27.23558279]
[1730493924242,13.83348392,166.8,166.75,27.23558279]
[1730493924423,8.8495469,166.79,166.75,27.23558279]
[1730493925031,8.8495469,166.79,166.75,21.23858279]
[1730493925629,8.8495469,166.79,166.75,27.23558279]
[1730493926644,8.8495469,166.78,166.75,27.23558279]
[1730493927533,8.8495469,166.77,166.71,8.8495469]
[1730493927753,5.9956,166.79,166.71,6.2445815]
[1730493927754,8.8495469,166.76,166.71,6.2445815]
[1730493928249,8.8495469,166.75,166.71,6.2445815]
[1730493928429,8.8495469,166.76,166.72,5.998]
[1730493930752,14.8443469,166.81,166.75,8.8495469]
[1730493931055,5.9948,166.81,166.76,8.8495469]
[1730493931259,25.3435469,166.82,166.77,8.8495469]
[1730493931948,31.3379469,166.82,166.78,5.9959]
[1730493932343,22.4884,166.82,166.78,5.9959]
[1730493932546,36.31013841,166.82,166.78,5.9959]
[1730493932951,13.82173841,166.8,166.75,13.82173841]
[1730493933134,36.31013841,166.82,166.76,13.82173841]
[1730493933835,36.31013841,166.82,166.77,13.82173841]
[1730493934543,36.31013841,166.82,166.77,19.81783841]
[1730493935958,36.31013841,166.82,166.77,34.80853841]
[1730493938445,30.31573841,166.82,166.77,34.80853841]
[1730493938654,16.494,166.82,166.77,34.80853841]
[1730493941646,16.494,166.82,166.78,3.06589686]
[1730493942448,22.4884,166.82,166.78,5.9958]
[1730493943259,36.31013841,166.82,166.77,20.9869]
[1730493943931,36.31013841,166.82,166.78,3.07285923]
[1730493944137,22.4884,166.82,166.79,3.07285923]
[1730493944446,22.4884,166.82,166.8,3.07285923]
[1730493944636,22.4884,166.82,166.78,5.9958]
[1730493944839,22.4884,166.82,166.79,3.07537805]
[1730493945035,13.82173841,166.84,166.8,3.07537805]
[1730493945365,12.6251,166.85,166.81,3.07537805]
[1730493945366,19.81533841,166.85,166.81,3.07537805]
[1730493945661,13.82173841,166.84,166.79,13.82173841]
[1730493945862,13.82173841,166.84,166.8,3.07701874]
[1730493946055,19.81573841,166.84,166.8,3.07701874]
[1730493946568,19.81573841,166.84,166.81,3.07701874]
[1730493946765,19.81573841,166.84,166.79,19.81713841]
[1730493946968,19.81573841,166.84,166.8,3.07715636]
[1730493947265,19.81573841,166.84,166.81,3.07715636]
[1730493947447,19.81573841,166.84,166.79,19.81713841]
[1730493947649,19.81573841,166.84,166.8,3.07715015]
[1730493947960,19.81573841,166.84,166.81,3.07715015]
[1730493948141,19.81573841,166.84,166.79,19.81713841]
[1730493948336,19.81573841,166.84,166.8,3.07791492]
[1730493948662,19.81573841,166.84,166.81,3.07791492]
[1730493948835,19.81573841,166.84,166.79,19.81713841]
[1730493949036,13.82173841,166.85,166.8,3.07791014]
[1730493949358,19.81513841,166.85,166.79,19.81713841]
[1730493949660,19.81513841,166.85,166.8,3.07838392]
[1730493949960,19.81513841,166.85,166.81,3.07838392]
[1730493950261,19.81513841,166.85,166.79,19.81713841]
[1730493950441,19.81513841,166.85,166.8,3.07824059]
[1730493950643,19.81513841,166.85,166.81,3.07824059]
[1730493950843,19.81513841,166.85,166.79,19.81713841]
[1730493951062,19.81513841,166.85,166.8,3.07721733]
[1730493951263,13.82173841,166.85,166.81,3.0763572]
[1730493951596,21.5367,166.86,166.81,13.82173841]
[1730493951859,35.35843841,166.86,166.81,13.82173841]
[1730493952066,35.35843841,166.86,166.8,13.82173841]
[1730493952236,35.35843841,166.86,166.81,3.07552482]
[1730493952438,8.84237809,166.85,166.81,9.07012482]
[1730493953458,30.37907809,166.86,166.81,9.07012482]
[1730493953755,30.37907809,166.86,166.81,5.9946]
[1730493953955,30.37907809,166.86,166.81,9.0685282]
[1730493955165,8.84237809,166.85,166.81,9.0685282]
[1730493955341,14.83577809,166.85,166.81,9.0685282]
[1730493956265,14.83577809,166.85,166.81,3.0739282]
[1730493957261,14.83577809,166.85,166.81,3.07292268]
[1730493961167,5.9934,166.85,166.81,3.07292268]
[1730493962170,5.9934,166.85,166.8,3.07292268]
[1730493962357,5.9934,166.85,166.81,3.07292268]
[1730493962555,5.9934,166.85,166.8,3.07292268]
[1730493962866,5.9934,166.85,166.77,6.25429157]
[1730493962867,8.84237809,166.83,166.77,6.25429157]
[1730493963060,8.84237809,166.81,166.77,6.25429157]
[1730493963247,8.84237809,166.81,166.78,3.07312506]
[1730493964044,8.84237809,166.81,166.75,8.84237809]
[1730493964245,8.84237809,166.81,166.76,3.07392257]
[1730493964441,8.84237809,166.81,166.77,3.07392257]
[1730493964660,5.9952,166.8,166.75,8.84237809]
[1730493964859,5.9952,166.8,166.76,11.91691238]
[1730493965059,5.9952,166.8,166.77,3.07453429]
[1730493965242,5.9952,166.8,166.76,8.84237809]
[1730493965455,5.9952,166.8,166.77,3.07452252]
[1730493965771,5.9952,166.8,166.76,8.84237809]
[1730493966061,5.9952,166.8,166.77,3.07453749]
[1730493966275,5.9952,166.8,166.76,8.84237809]
[1730493966451,5.9952,166.8,166.77,3.07463297]
[1730493966774,5.9952,166.8,166.76,8.84237809]
[1730493967065,14.83757809,166.8,166.77,3.07480568]
[1730493967272,8.84237809,166.79,166.76,3.07480568]
[1730493967471,8.84237809,166.79,166.75,3.07480568]
[1730493967769,8.84237809,166.79,166.74,15.09627939]
[1730493967770,8.84237809,166.79,166.76,3.07480568]
[1730493967950,8.84237809,166.79,166.75,3.07480568]
[1730493968270,8.84237809,166.79,166.76,3.07531636]
[1730493968575,5.9959,166.78,166.75,3.07531636]
[1730493968867,5.9959,166.78,166.76,3.07531636]
[1730493969081,5.9959,166.78,166.75,3.07531636]
[1730493969273,5.9959,166.78,166.75,11.91769445]
[1730493969452,5.9959,166.78,166.76,3.07531636]
[1730493970051,5.9959,166.78,166.75,8.84237809]
[1730493970251,5.9955,166.79,166.76,3.0744731]
[1730493970464,5.9955,166.79,166.75,3.0744731]
[1730493970672,14.83787809,166.79,166.76,3.0744731]
[1730493970878,5.9955,166.79,166.76,8.84237809]
[1730493971050,5.9955,166.79,166.76,11.91685119]
[1730493971373,14.83787809,166.79,166.75,3.0744731]
[1730493971670,14.83787809,166.79,166.76,3.0744731]
[1730493971843,14.83787809,166.79,166.75,3.0744731]
[1730493972042,14.83787809,166.79,166.76,3.0744731]
[1730493972248,14.83787809,166.79,166.75,3.0744731]
[1730493972464,14.83787809,166.79,166.76,3.0744731]
[1730493972665,14.83787809,166.79,166.75,3.0744731]
[1730493972866,14.83757809,166.8,166.76,3.0744731]
[1730493973063,14.83757809,166.8,166.77,3.0744731]
[1730493973266,14.83757809,166.8,166.75,3.0744731]
[1730493973468,14.83757809,166.8,166.76,3.0744731]
[1730493973768,14.83757809,166.8,166.77,3.0744731]
[1730493973951,14.83757809,166.8,166.77,3.07490078]
[1730493974357,14.83757809,166.8,166.74,15.09627939]
[1730493974570,14.83757809,166.8,166.75,3.07530275]
[1730493974769,14.83757809,166.8,166.76,3.07530275]
[1730493975571,14.83757809,166.8,166.77,3.07530275]
[1730493975773,14.83757809,166.8,166.75,3.07530275]
[1730493975969,14.83757809,166.8,166.76,3.07530275]
[1730493976166,14.83757809,166.8,166.74,15.09627939]
[1730493976167,14.83757809,166.8,166.77,3.07530275]
[1730493976372,5.9952,166.8,166.75,11.91768084]
[1730493976595,5.9952,166.8,166.76,11.91768084]
[1730493976876,5.9952,166.8,166.76,8.84237809]
[1730493977275,5.9952,166.8,166.76,11.91768084]
[1730493977567,5.9952,166.8,166.75,11.91768084]
[1730493977773,5.9952,166.8,166.76,3.07530275]
[1730493978781,14.83757809,166.8,166.76,3.07530275]
[1730493978970,5.9959,166.78,166.75,3.07530275]
[1730493979176,5.9959,166.78,166.76,3.07530275]
[1730493979371,5.9959,166.78,166.75,3.07530275]
[1730493979578,5.9959,166.78,166.76,3.07530275]
[1730493979884,5.9959,166.78,166.75,3.07530275]
[1730493980083,5.9959,166.78,166.76,3.07530275]
[1730493980284,5.9959,166.78,166.75,3.07530275]
[1730493980461,5.9959,166.78,166.76,3.07530275]
[1730493980661,5.9959,166.78,166.75,3.07530275]
[1730493980862,5.9959,166.78,166.76,3.07530275]
[1730493981187,5.9959,166.78,166.75,3.07530275]
[1730493981377,5.9959,166.78,166.76,3.07530275]
[1730493981576,5.9959,166.78,166.75,3.07530275]
[1730493981778,5.9959,166.78,166.76,3.07530275]
[1730493981958,5.9959,166.78,166.75,3.07530275]
[1730493982160,5.9959,166.78,166.74,15.09627939]
[1730493982490,5.9959,166.78,166.75,3.07621118]
[1730493982674,14.83827809,166.78,166.75,3.07621118]
[1730493982980,8.84237809,166.77,166.73,3.07621118]
[1730493983178,8.84237809,166.77,166.72,11.91858927]
[1730493983366,8.84237809,166.77,166.73,3.07621118]
[1730493983577,8.84237809,166.77,166.72,8.84237809]
[1730493983786,8.84237809,166.77,166.72,11.91858927]
[1730493984092,8.84237809,166.77,166.72,8.84237809]
[1730493984269,5.9966,166.76,166.72,3.07621118]
[1730493985075,5.9966,166.76,166.71,8.84237809]
[1730493985391,5.9966,166.76,166.72,3.07640977]
[1730493987092,5.9966,166.76,166.71,11.91801721]
[1730493987389,5.9966,166.76,166.71,8.84237809]
[1730493988001,20.9882,166.76,166.71,8.84237809]
[1730493988999,8.84237809,166.75,166.7,18.17491558]
[1730493989173,8.84237809,166.73,166.68,8.84237809]
[1730493989495,24.70947809,166.74,166.69,8.84237809]
[1730493989695,5.9977,166.73,166.69,8.84237809]
[1730493991572,32.61926209,166.7,166.67,9.33304541]
[1730493991767,32.61926209,166.7,166.65,0.6089798]
[1730493991768,8.84237809,166.68,166.65,0.6089798]
[1730493992003,8.84237809,166.66,166.65,0.6089798]
[1730493992898,14.84257809,166.66,166.65,0.6089798]
[1730493994594,58.61946209,166.66,166.65,0.6089798]
[1730493995291,93.98897445,166.66,166.65,0.6089798]
[1730493995496,43.776884,166.65,166.55,6.256474]
[1730493995690,8.84237809,166.58,166.55,6.256474]
[1730493996088,8.84237809,166.59,166.55,6.256474]
[1730493996401,35.36951236,166.64,166.55,6.256474]
[1730493996402,8.84237809,166.58,166.55,6.256474]
[1730493997097,6.0034,166.57,166.55,6.256474]
[1730493998680,14.84577809,166.57,166.55,6.256474]
[1730493998885,14.84577809,166.57,166.52,20.0]
[1730493999103,14.84577809,166.57,166.52,26.2539908]
[1730493999405,8.84237809,166.56,166.52,6.2539908]
[1730493999772,14.84577809,166.57,166.52,6.2539908]
[1730494000196,8.84237809,166.56,166.52,6.2539908]
[1730494000607,6.0042,166.55,166.52,6.2539908]
[1730494003802,8.84237809,166.58,166.52,15.09636889]
[1730494004119,14.84547809,166.58,166.52,15.09636889]
[1730494004803,8.84237809,166.56,166.52,6.2539908]
[1730494005000,8.84237809,166.55,166.52,6.2539908]
[1730494005311,8.84237809,166.55,166.49,15.0156]
[1730494005312,57.1197,166.58,166.48,0.6089798]
[1730494005600,8.84237809,166.52,166.48,0.6089798]
[1730494006183,6.0056,166.51,166.48,9.45135789]
[1730494006484,6.0056,166.51,166.49,8.84237809]
[1730494007394,6.0049,166.53,166.49,8.84237809]
[1730494010007,8.84237809,166.52,166.48,0.6089798]
[1730494010195,6.0056,166.51,166.48,0.6089798]
[1730494010704,14.84797809,166.51,166.48,0.6089798]
[1730494011503,8.84237809,166.5,166.48,0.6089798]
[1730494012402,6.0063,166.49,166.48,0.6089798]
[1730494012816,14.84867809,166.49,166.48,0.6089798]
[1730494023719,50.21819045,166.49,166.48,0.6089798]
[1730494024021,70.21819045,166.49,166.48,0.6089798]
[1730494024322,139.04277445,166.49,166.44,6.25959253]
[1730494024502,139.04277445,166.49,166.36,27.2212]
[1730494024503,8.84237809,166.45,166.36,27.2212]
[1730494024704,8.84237809,166.41,166.4,6.26018296]
[1730494025093,8.84237809,166.41,166.36,21.2105]
[1730494025415,8.84237809,166.39,166.36,6.1833]
[1730494025623,8.84237809,166.39,166.37,6.2412724]
[1730494026011,14.85227809,166.4,166.37,6.2412724]
[1730494026411,8.84237809,166.41,166.37,12.2517724]
[1730494026920,8.84237809,166.41,166.37,6.2412724]
[1730494028216,14.85167809,166.41,166.37,6.2412724]
[1730494028408,8.84237809,166.4,166.37,6.2412724]
[1730494030324,14.85167809,166.41,166.37,6.2412724]
[1730494030828,8.84237809,166.42,166.37,12.2516724]
[1730494031521,50.37661236,166.48,166.37,12.2516724]
[1730494031522,8.84237809,166.38,166.37,6.2412724]
[1730494033916,14.85267809,166.38,166.37,6.2412724]
[1730494038523,8.84237809,166.38,166.37,6.2412724]
[1730494039532,8.84237809,166.41,166.37,6.2412724]
[1730494039823,8.84237809,166.4,166.37,6.2412724]
[1730494041811,8.84237809,166.39,166.37,6.2412724]
[1730494042224,14.85207809,166.4,166.37,6.2412724]
[1730494043719,8.84237809,166.42,166.37,36.12095049]
[1730494044233,6.0085,166.43,166.37,27.2785724]
[1730494044234,8.84237809,166.41,166.37,27.2785724]
[1730494045705,8.84237809,166.41,166.37,21.2679724]
[1730494045907,14.85187809,166.41,166.37,27.2785724]
[1730494048231,8.84237809,166.41,166.37,27.2785724]
[1730494049630,14.85177809,166.41,166.37,27.2785724]
[1730494049801,8.84237809,166.41,166.37,27.2785724]
[1730494052935,8.84237809,166.42,166.37,36.12095049]
[1730494053625,8.84237809,166.41,166.37,27.2785724]
[1730494055426,8.84237809,166.4,166.37,27.2785724]
[1730494060045,8.84237809,166.4,166.37,27.2785724]
[1730494060644,8.84237809,166.41,166.37,27.2785724]
[1730494061946,14.85157809,166.41,166.37,27.2785724]
[1730494063333,8.84237809,166.42,166.37,36.12095049]
[1730494066948,8.84237809,166.42,166.38,9.04630793]
[1730494068250,8.84237809,166.42,166.38,6.01]
[1730494073052,8.84237809,166.38,166.37,9.29420626]
[1730494077853,8.84237809,166.4,166.37,9.29420626]
[1730494078148,8.84237809,166.4,166.37,6.25269726]
[1730494078453,8.84237809,166.39,166.37,6.25269726]
[1730494080140,8.84237809,166.38,166.37,6.25269726]
[1730494080343,8.84237809,166.38,166.37,9.29492639]
[1730494081453,14.85267809,166.38,166.37,9.29492639]
[1730494081665,14.85267809,166.38,166.37,6.25269726]
[1730494082265,14.85267809,166.38,166.33,3.04255169]
[1730494082555,8.84237809,166.35,166.34,6.25727979]
[1730494083157,35.36951236,166.4,166.34,6.25727979]
[1730494083158,8.84237809,166.36,166.34,6.25727979]
[1730494083455,8.84237809,166.36,166.34,9.29983148]
[1730494083660,6.0109,166.37,166.34,9.29983148]
[1730494083661,8.84237809,166.35,166.34,9.29983148]
[1730494084035,8.84237809,166.35,166.34,9.29968855]
[1730494085147,8.84237809,166.36,166.34,9.29968855]
[1730494085349,8.84237809,166.36,166.35,3.04240876]
[1730494086043,8.84237809,166.36,166.34,6.25727979]
[1730494086437,8.84237809,166.36,166.35,3.04188842]
[1730494089838,8.84237809,166.36,166.35,3.04045126]
[1730494091264,8.84237809,166.36,166.34,6.25727979]
[1730494092443,8.84237809,166.37,166.34,6.25727979]
[1730494093248,8.84237809,166.39,166.35,3.03959411]
[1730494093456,8.84237809,166.39,166.34,36.14075788]
[1730494093763,8.84237809,166.39,166.34,29.88347809]
[1730494093964,8.84237809,166.39,166.36,3.03935618]
[1730494094460,8.84237809,166.39,166.36,6.07867779]
[1730494096869,14.85227809,166.39,166.36,6.07867779]
[1730494097164,8.84237809,166.39,166.36,15.12904698]
[1730494097336,8.84237809,166.39,166.36,12.08972537]
[1730494097539,8.84237809,166.39,166.36,9.05025618]
[1730494097738,8.84237809,166.4,166.36,24.07785618]
[1730494097940,8.84237809,166.39,166.36,24.07785618]
[1730494098144,8.84237809,166.37,166.36,3.03935618]
[1730494098645,6.011,166.36,166.34,6.25796567]
[1730494098861,8.84237809,166.35,166.34,6.25796567]
[1730494099366,8.84237809,166.35,166.32,0.6089798]
[1730494099667,8.84237809,166.34,166.32,0.6089798]
[1730494101250,8.84237809,166.35,166.32,0.6089798]
[1730494109375,14.85377809,166.35,166.32,0.6089798]
[1730494109671,8.84237809,166.33,166.32,0.6089798]
[1730494110050,18.19870426,166.33,166.32,0.6089798]
[1730494110269,73.56821662,166.33,166.32,0.6089798]
[1730494110848,20.0,166.32,166.27,6.25597678]
[1730494111054,8.84237809,166.28,166.27,6.25597678]
[1730494112966,8.84237809,166.29,166.27,12.27027678]
[1730494113879,8.84237809,166.28,166.27,6.25597678]
[1730494119575,8.84237809,166.29,166.27,6.25597678]
[1730494125569,14.85577809,166.3,166.27,6.25597678]
[1730494127488,8.84237809,166.29,166.27,6.25597678]
[1730494130469,14.85597809,166.29,166.27,6.25597678]
[1730494131279,8.84237809,166.28,166.27,6.25597678]
[1730494133495,14.85597809,166.29,166.27,6.25597678]
[1730494136993,14.85597809,166.29,166.27,5.75597678]
[1730494139400,6.0136,166.29,166.27,5.75597678]
[1730494141011,8.84237809,166.32,166.27,20.61255487]
[1730494142085,14.85507809,166.32,166.27,14.59835487]
[1730494142792,8.84237809,166.31,166.27,5.75597678]
[1730494143490,14.85527809,166.31,166.27,11.77017678]
[1730494144212,8.84237809,166.29,166.27,5.75597678]
[1730494145490,8.84237809,166.28,166.27,5.75597678]
[1730494147516,41.38201236,166.32,166.27,5.75597678]
[1730494147517,8.84237809,166.29,166.27,5.75597678]
[1730494147827,14.85597809,166.29,166.27,5.75597678]
[1730494148926,8.84237809,166.3,166.27,5.75597678]
[1730494150324,6.0125,166.32,166.27,5.75597678]
[1730494150325,8.84237809,166.29,166.27,5.75597678]
[1730494152931,8.84237809,166.3,166.27,11.77017678]
[1730494153108,6.0129,166.31,166.27,11.77017678]
[1730494153109,14.85527809,166.31,166.27,11.77017678]
[1730494155228,14.85527809,166.31,166.28,3.04679087]
[1730494155530,14.85527809,166.31,166.27,11.77017678]
[1730494155724,14.85527809,166.31,166.28,3.04678766]
[1730494155919,8.84237809,166.3,166.27,11.77017678]
[1730494156116,8.84237809,166.3,166.28,3.04675111]
[1730494156309,8.84237809,166.3,166.27,11.77017678]
[1730494156627,8.84237809,166.3,166.28,3.04716549]
[1730494156829,8.84237809,166.3,166.27,11.77017678]
[1730494157018,8.84237809,166.3,166.28,3.04716537]
[1730494157226,8.84237809,166.3,166.27,11.77017678]
[1730494157416,8.84237809,166.3,166.28,3.04716757]
[1730494157609,8.84237809,166.3,166.27,11.77017678]
[1730494157930,8.84237809,166.3,166.28,3.04714367]
[1730494158126,8.84237809,166.3,166.27,11.77017678]
[1730494158314,8.84237809,166.3,166.28,3.04712902]
[1730494158519,8.84237809,166.3,166.27,11.77017678]
[1730494158725,8.84237809,166.3,166.28,3.04714765]
[1730494158932,8.84237809,166.3,166.27,11.77017678]
[1730494159719,8.84237809,166.3,166.28,6.09425659]
[1730494159919,8.84237809,166.3,166.28,3.04714397]
[1730494162420,15.6508,166.33,166.28,3.04714397]
[1730494162421,8.84237809,166.29,166.28,3.04714397]
[1730494163925,8.84237809,166.3,166.28,3.04714397]
[1730494164107,8.84237809,166.29,166.28,3.04714397]
[1730494167723,14.85557809,166.3,166.28,3.04714397]
[1730494168029,8.84237809,166.31,166.28,9.06094397]
[1730494168228,8.84237809,166.34,166.28,32.93812206]
[1730494168534,8.84237809,166.32,166.28,24.09574397]
[1730494168711,8.84237809,166.3,166.28,24.09574397]
[1730494168913,8.84237809,166.29,166.25,21.052]
[1730494169124,21.0399,166.35,166.26,3.04629308]
[1730494169328,8.84237809,166.28,166.25,21.052]
[1730494169607,8.84237809,166.28,166.26,3.04627023]
[1730494169913,8.84237809,166.28,166.25,21.052]
[1730494169914,8.84237809,166.28,166.25,15.037]
[1730494170126,8.84237809,166.28,166.26,3.04628518]
[1730494170316,8.84237809,166.28,166.25,15.037]
[1730494170509,6.0136,166.29,166.26,3.0467344]
[1730494170510,8.84237809,166.27,166.26,3.0467344]
[1730494170832,8.84237809,166.27,166.24,6.0153]
[1730494171020,8.84237809,166.27,166.25,3.0469651]
[1730494171218,8.84237809,166.27,166.24,6.0153]
[1730494171415,8.84237809,166.27,166.22,21.0558]
[1730494171618,8.84237809,166.27,166.23,3.04651224]
[1730494172114,8.84237809,166.27,166.24,3.04651224]
[1730494172315,8.84237809,166.27,166.22,21.0558]
[1730494172523,8.84237809,166.27,166.23,3.04611153]
[1730494172717,8.84237809,166.26,166.24,3.04611153]
[1730494172941,8.84237809,166.26,166.22,21.0558]
[1730494173247,8.84237809,166.26,166.23,3.04614796]
[1730494173621,8.84237809,166.26,166.24,3.04614796]
[1730494173928,8.84237809,166.27,166.23,21.0548]
[1730494174123,8.84237809,166.27,166.24,3.04571697]
[1730494174325,8.84237809,166.28,166.24,3.04571697]
[1730494174808,8.84237809,166.28,166.23,21.0548]
[1730494175008,8.84237809,166.28,166.24,3.04542209]
[1730494175217,8.84237809,166.28,166.23,21.0548]
[1730494175413,8.84237809,166.27,166.24,3.04512561]
[1730494175619,8.84237809,166.27,166.23,21.0548]
[1730494176637,8.84237809,166.28,166.23,21.0548]
[1730494177714,8.84237809,166.28,166.23,29.89717809]
[1730494178217,8.84237809,166.28,166.23,21.0548]
[1730494179242,8.84237809,166.27,166.23,21.0548]
[1730494180229,8.84237809,166.27,166.23,15.0394]
[1730494185346,14.85667809,166.28,166.22,8.84237809]
[1730494186420,14.85667809,166.28,166.23,6.0157]
[1730494189653,8.84237809,166.27,166.21,8.84237809]
[1730494189948,8.84237809,166.27,166.22,3.04219228]
[1730494190249,8.84237809,166.27,166.21,8.84237809]
[1730494190446,8.84237809,166.27,166.22,3.04223481]
[1730494190648,8.84237809,166.27,166.21,8.84237809]
[1730494190948,8.84237809,166.27,166.22,24.09863481]
[1730494191149,8.84237809,166.27,166.22,21.0564]
[1730494194266,8.84237809,166.29,166.24,8.84237809]
[1730494197228,8.84237809,166.29,166.25,6.015]
[1730494200260,8.84237809,166.31,166.25,29.89487809]
[1730494200569,8.84237809,166.29,166.25,21.0525]
[1730494200864,8.84237809,166.28,166.25,21.0525]
[1730494201464,8.84237809,166.28,166.25,15.0375]
[1730494203764,8.84237809,166.26,166.19,8.84237809]
[1730494203940,8.84237809,166.24,166.2,3.04419297]
[1730494204145,8.84237809,166.24,166.21,3.04419297]
[1730494204368,8.84237809,166.24,166.19,21.0602]
[1730494204742,8.84237809,166.24,166.2,3.04447742]
[1730494205155,8.84237809,166.24,166.19,21.0602]
[1730494205761,8.84237809,166.24,166.2,3.04450905]
[1730494205960,8.84237809,166.22,166.21,3.04450905]
[1730494206160,8.84237809,166.22,166.18,6.0175]
[1730494206344,8.84237809,166.21,166.18,6.0175]
[1730494207378,8.84237809,166.21,166.17,21.0627]
[1730494207551,8.84237809,166.21,166.18,3.0436613]
[1730494207872,6.0162,166.22,166.17,21.0627]
[1730494207873,14.85857809,166.22,166.17,29.90507809]
[1730494208059,14.85857809,166.22,166.18,3.04369528]
[1730494208568,8.84237809,166.22,166.18,3.04369528]
[1730494208743,21.298,166.26,166.18,3.04369528]
[1730494208744,8.84237809,166.21,166.18,3.04369528]
[1730494208949,8.84237809,166.21,166.17,21.0627]
[1730494209772,8.84237809,166.22,166.17,21.0627]
[1730494212865,8.84237809,166.21,166.17,15.0448]
[1730494213064,8.84237809,166.22,166.17,23.88717809]
[1730494213257,8.84237809,166.22,166.17,15.0448]
[1730494213453,8.84237809,166.22,166.17,23.88717809]
[1730494216080,30.91787809,166.23,166.17,29.90507809]
[1730494220380,14.85847809,166.22,166.17,29.90507809]
[1730494221681,6.0161,166.22,166.17,29.90507809]
[1730494222384,24.90207809,166.23,166.18,8.84237809]
[1730494224159,30.91787809,166.23,166.18,8.84237809]
[1730494224568,25.10287809,166.27,166.21,8.84237809]
[1730494224778,8.84237809,166.25,166.2,8.84237809]
[1730494224963,8.84237809,166.25,166.19,29.90257809]
[1730494227184,8.84237809,166.25,166.2,8.84237809]
[1730494227374,14.85707809,166.26,166.21,8.84237809]
[1730494227771,8.84237809,166.26,166.21,8.84237809]
[1730494228188,25.10287809,166.27,166.22,8.84237809]
[1730494228784,31.11717809,166.27,166.23,6.0157]
[1730494229664,8.84237809,166.26,166.23,6.0157]
[1730494229874,8.84237809,166.25,166.21,15.0403]
[1730494230064,8.84237809,166.25,166.21,21.0565]
[1730494233492,14.85717809,166.26,166.21,21.0565]
[1730494236098,14.85717809,166.26,166.21,8.84237809]
[1730494238697,14.85717809,166.26,166.21,14.85857809]
[1730494239195,14.85717809,166.26,166.21,6.0162]
[1730494240894,8.84237809,166.25,166.21,6.0162]
[1730494241212,14.85737809,166.25,166.21,6.0162]
[1730494243200,14.85697809,166.26,166.21,6.0162]
[1730494243369,14.85697809,166.26,166.21,29.89977809]
[1730494245596,31.11717809,166.27,166.22,8.84237809]
[1730494246095,31.11717809,166.27,166.21,29.89977809]
[1730494250695,14.85557809,166.3,166.24,8.84237809]
[1730494250874,6.0132,166.3,166.25,8.84237809]
[1730494251071,14.85557809,166.3,166.25,8.84237809]
[1730494251272,14.85557809,166.3,166.24,8.84237809]
[1730494251975,14.85557809,166.3,166.25,21.0525]